bitfinex/quotes_SOLUSD_20251202
["timestamp","ask_amount","ask_price","bid_price","bid_amount"]
[1764646466453,32.40297409,126.45,126.4,4.76404962]
[1764646466656,0.66,126.44,126.4,4.76404962]
[1764646466877,0.66,126.44,126.4,12.67509866]
[1764646467043,4.72404962,126.44,126.4,12.67509866]
[1764646467243,4.72404962,126.44,126.4,8.61104904]
[1764646468073,4.72404962,126.44,126.4,7.91104904]
[1764646468276,4.72404962,126.44,126.41,0.7]
[1764646469081,9.4,126.43,126.38,27.69292725]
[1764646469245,4.06404962,126.4,126.38,7.91214789]
[1764646469447,4.06404962,126.41,126.38,7.91214789]
[1764646469931,4.72404962,126.4,126.37,7.91308191]
[1764646470047,4.72404962,126.4,126.34,9.44]
[1764646470048,4.06404962,126.38,126.34,9.44]
[1764646470252,4.06404962,126.38,126.34,17.3551317]
[1764646470452,4.72404962,126.38,126.35,0.7]
[1764646471172,4.72404962,126.38,126.35,8.61435023]
[1764646471673,4.72404962,126.38,126.35,0.7]
[1764646471876,4.06404962,126.39,126.35,16.72434618]
[1764646472043,8.74,126.4,126.36,0.7]
[1764646472247,13.46404962,126.4,126.36,0.7]
[1764646472469,4.72404962,126.39,126.35,7.91440126]
[1764646472676,4.06404962,126.38,126.35,8.61440126]
[1764646473577,4.06404962,126.39,126.36,0.7]
[1764646473880,13.46404962,126.4,126.36,0.7]
[1764646474991,16.308864,126.43,126.36,0.7]
[1764646474992,11.97379914,126.43,126.39,4.06404962]
[1764646475272,0.66,126.44,126.4,4.06404962]
[1764646475469,4.06404962,126.44,126.39,13.57399454]
[1764646475675,0.66,126.43,126.4,0.7]
[1764646476854,0.66,126.43,126.4,4.76404962]
[1764646477270,0.66,126.43,126.4,8.61108218]
[1764646477576,12.63371253,126.43,126.39,11.97592591]
[1764646477753,12.63371253,126.43,126.39,12.69592591]
[1764646478670,4.72404962,126.43,126.39,12.69592591]
[1764646479482,0.7,126.42,126.39,12.69592591]
[1764646480877,4.06404962,126.43,126.39,12.69592591]
[1764646481189,0.7,126.43,126.39,12.69592591]
[1764646481366,4.76404962,126.43,126.39,12.69592591]
[1764646482754,0.71,126.42,126.39,12.69592591]
[1764646483581,0.71,126.43,126.4,11.97525435]
[1764646483881,4.77404962,126.42,126.39,7.91179166]
[1764646484064,0.71,126.42,126.39,12.69584128]
[1764646484456,4.06404962,126.43,126.39,12.69584128]
[1764646484669,4.77404962,126.43,126.39,12.69584128]
[1764646484986,8.61960822,126.43,126.39,12.69584128]
[1764646485592,0.71,126.42,126.39,12.69584128]
[1764646486681,8.61960822,126.43,126.39,12.69584128]
[1764646489496,8.61960822,126.43,126.39,11.97584128]
[1764646489684,8.61960822,126.43,126.4,0.72]
[1764646489992,91.308864,126.47,126.42,4.06404962]
[1764646489993,29.82291362,126.47,126.42,4.06404962]
[1764646490191,8.74,126.46,126.42,4.06404962]
[1764646490397,13.51404962,126.46,126.41,4.78404962]
[1764646490770,12.80404962,126.46,126.41,4.06404962]
[1764646490975,0.71,126.45,126.42,0.72]
[1764646491289,0.71,126.45,126.42,8.63000581]
[1764646492498,9.45,126.45,126.42,8.63000581]
[1764646493302,0.71,126.45,126.42,12.69405543]
[1764646493506,8.74,126.46,126.43,0.72]
[1764646493811,9.45,126.46,126.43,0.72]
[1764646494179,8.74,126.46,126.43,4.78404962]
[1764646494684,8.74,126.46,126.44,0.72]
[1764646495384,8.74,126.46,126.43,8.62914145]
[1764646495711,8.74,126.46,126.43,11.97319107]
[1764646496088,8.74,126.46,126.43,12.69319107]
[1764646496592,0.2,126.48,126.45,4.06404962]
[1764646497111,0.2,126.48,126.46,0.72]
[1764646497688,0.2,126.48,126.45,4.06404962]
[1764646497889,0.2,126.48,126.45,4.78404962]
[1764646498508,0.2,126.48,126.45,12.69183198]
[1764646501312,0.2,126.48,126.47,4.06404962]
[1764646501716,0.2,126.48,126.47,4.78404962]
[1764646502096,0.2,126.48,126.47,12.69106314]
[1764646502296,0.2,126.48,126.47,7.90701352]
[1764646502707,0.2,126.48,126.47,8.62701352]
[1764646503013,0.2,126.48,126.47,7.90701352]
[1764646503525,0.2,126.48,126.47,8.62701352]
[1764646504142,0.2,126.48,126.47,12.69106314]
[1764646504423,0.2,126.51,126.48,8.80994492]
[1764646504595,0.2,126.51,126.5,20.37291362]
[1764646504995,0.2,126.51,126.5,21.09291362]
[1764646506301,0.2,126.52,126.5,37.95015844]
[1764646506509,0.2,126.54,126.53,25.26097049]
[1764646506715,0.2,126.54,126.53,42.12906973]
[1764646507015,0.2,126.55,126.54,8.95210649]
[1764646507201,0.2,126.59,126.56,25.26097049]
[1764646507397,0.2,126.59,126.56,38.06502011]
[1764646507594,1e-08,126.57,126.56,38.78502011]
[1764646507797,0.2,126.59,126.57,0.14216157]
[1764646508004,0.2,126.59,126.57,13.73615611]
[1764646508217,4.97404962,126.58,126.53,3.16618514]
[1764646508515,0.91,126.58,126.55,4.06404962]
[1764646508692,0.91,126.58,126.56,4.06404962]
[1764646509416,0.71,126.57,126.55,4.06404962]
[1764646509616,0.91,126.58,126.56,4.06404962]
[1764646509817,0.91,126.58,126.55,4.06404962]
[1764646510017,0.71,126.57,126.55,4.06404962]
[1764646510195,0.91,126.58,126.55,4.06404962]
[1764646510400,8.81015499,126.58,126.54,7.90237409]
[1764646510600,0.71,126.57,126.54,7.90237409]
[1764646512221,11.28974318,126.55,126.5,31.71175429]
[1764646512527,11.28974318,126.55,126.5,20.42201111]
[1764646512703,0.7,126.54,126.5,20.42201111]
[1764646513313,0.7,126.54,126.51,7.90431005]
[1764646514704,11.98974318,126.56,126.51,19.85405323]
[1764646514899,20.06974318,126.57,126.52,11.94974318]
[1764646515116,0.7,126.56,126.52,11.28974318]
[1764646515316,0.7,126.56,126.52,19.19312075]
[1764646515534,19.89127825,126.56,126.51,7.90431367]
[1764646515740,19.89127825,126.56,126.51,8.56431367]
[1764646516035,11.28974318,126.53,126.5,16.308864]
[1764646516208,11.28974318,126.52,126.48,7.90618573]
[1764646516511,11.28974318,126.52,126.47,40.52645982]
[1764646516512,0.7,126.52,126.46,7.90763877]
[1764646516711,20.06974318,126.52,126.46,19.19738195]
[1764646516929,11.98974318,126.51,126.46,19.19738195]
[1764646517327,0.7,126.5,126.46,19.85738195]
[1764646517834,0.7,126.5,126.46,28.33673571]
[1764646518026,0.7,126.5,126.46,27.67673571]
[1764646518224,11.98974318,126.5,126.46,27.67673571]
[1764646518538,7.91438565,126.5,126.46,27.67673571]
[1764646518747,0.7,126.49,126.46,27.67673571]
[1764646519632,0.7,126.49,126.46,28.33673571]
[1764646519828,0.7,126.51,126.46,35.55112136]
[1764646520019,0.7,126.5,126.46,35.55112136]
[1764646520215,0.7,126.5,126.46,28.33673571]
[1764646520435,0.7,126.5,126.46,35.55112136]
[1764646522837,0.7,126.5,126.48,7.90638836]
[1764646524746,0.7,126.5,126.47,7.90701352]
[1764646524947,0.7,126.5,126.47,15.12139917]
[1764646525652,0.7,126.52,126.48,7.87438565]
[1764646525848,7.91438565,126.51,126.47,27.67454732]
[1764646526339,0.7,126.5,126.47,27.67454732]
[1764646530250,7.91438565,126.5,126.45,17.608864]
[1764646530445,2.59779938,126.49,126.44,12.67779938]
[1764646530646,0.7,126.49,126.45,7.90818831]
[1764646530855,0.7,126.49,126.45,11.16598769]
[1764646531351,0.7,126.49,126.45,10.50598769]
[1764646531535,8.78,126.52,126.48,2.59779938]
[1764646531740,0.7,126.51,126.48,2.59779938]
[1764646531940,0.7,126.51,126.49,7.9057633]
[1764646532654,0.7,126.54,126.5,12.0677443]
[1764646534071,0.7,126.54,126.51,7.90451347]
[1764646535649,11.20069938,126.54,126.5,7.90490111]
[1764646536163,0.66,126.53,126.5,7.90490111]
[1764646537162,0.66,126.53,126.5,10.50270049]
[1764646538272,16.68161991,126.56,126.5,10.50270049]
[1764646538476,0.66,126.55,126.51,2.59779938]
[1764646538675,3.25779938,126.55,126.5,30.96554633]
[1764646539076,3.25779938,126.55,126.5,32.26554633]
[1764646539267,0.66,126.54,126.5,32.26554633]
[1764646540974,0.66,126.54,126.51,2.59779938]
[1764646541171,0.66,126.54,126.51,3.29779938]
[1764646541476,0.66,126.54,126.51,2.59779938]
[1764646541773,0.69,126.56,126.53,2.59779938]
[1764646542569,0.69,126.56,126.52,3.26779938]
[1764646543065,0.69,126.56,126.51,36.42519441]
[1764646543243,0.69,126.56,126.52,2.59779938]
[1764646543762,0.69,126.56,126.52,10.50106899]
[1764646543961,0.69,126.56,126.52,11.17106899]
[1764646544764,0.69,126.56,126.53,3.26779938]
[1764646545581,0.69,126.56,126.52,30.26079077]
[1764646545774,0.69,126.56,126.52,30.93079077]
[1764646546980,0.69,126.56,126.54,7.90263948]
[1764646548464,0.69,126.56,126.53,7.90326404]
[1764646548674,3.28779938,126.56,126.53,7.90326404]
[1764646549065,0.69,126.55,126.53,7.90326404]
[1764646551586,9.45,126.57,126.53,11.17106342]
[1764646551775,0.69,126.56,126.53,10.50106342]
[1764646552292,0.69,126.56,126.53,7.90326404]
[1764646554788,0.69,126.56,126.52,27.66361049]
[1764646555092,0.69,126.56,126.53,2.59779938]
[1764646555672,8.59139415,126.56,126.52,27.66361049]
[1764646555999,0.69,126.56,126.52,30.93140987]
[1764646556179,0.69,126.55,126.52,30.93140987]
[1764646559601,9.45,126.57,126.53,3.26779938]
[1764646559897,0.69,126.56,126.53,3.26779938]
[1764646560208,0.69,126.56,126.53,2.59779938]
[1764646560414,0.69,126.56,126.52,30.93140987]
[1764646561505,0.89,126.58,126.54,10.50043886]
[1764646561681,0.2,126.58,126.57,2.59779938]
[1764646562199,0.2,126.58,126.57,3.26779938]
[1764646562584,0.2,126.58,126.56,3.26779938]
[1764646562812,0.2,126.58,126.57,7.90076637]
[1764646563318,0.2,126.58,126.57,10.49856575]
[1764646565786,0.89,126.58,126.57,7.90076637]
[1764646565986,0.89,126.58,126.56,7.90136003]
[1764646566218,0.69,126.57,126.56,7.90136003]
[1764646566719,0.89,126.58,126.56,7.90136003]
[1764646566899,0.89,126.58,126.55,7.90201501]
[1764646567222,0.2,126.58,126.57,2.59779938]
[1764646567604,0.89,126.58,126.56,2.59779938]
[1764646567805,0.89,126.58,126.55,39.01485192]
[1764646568107,0.89,126.58,126.55,39.68485192]
[1764646568321,0.69,126.57,126.55,36.41705254]
[1764646568533,0.2,126.58,126.56,3.26779938]
[1764646568723,0.2,126.58,126.57,2.59779938]
[1764646569023,0.2,126.58,126.57,10.49856575]
[1764646569917,0.2,126.58,126.57,11.16856575]
[1764646570117,0.2,126.58,126.57,10.49856575]
[1764646570442,0.2,126.58,126.57,11.16856575]
[1764646570805,0.2,126.58,126.57,10.49856575]
[1764646571605,0.2,126.58,126.57,7.90076637]
[1764646572004,0.2,126.58,126.57,10.49856575]
[1764646574429,0.2,126.58,126.57,11.15856575]
[1764646574600,0.2,126.58,126.57,10.49856575]
[1764646574801,0.88,126.58,126.55,2.59779938]
[1764646574997,2.59779938,126.57,126.52,2.59779938]
[1764646575207,2.59779938,126.56,126.51,25.708864]
[1764646575533,2.59779938,126.56,126.51,28.30666338]
[1764646575534,3.27779938,126.56,126.51,28.30666338]
[1764646575712,0.68,126.55,126.51,28.30666338]
[1764646575917,0.68,126.55,126.51,11.99779938]
[1764646576119,11.17988832,126.55,126.51,7.90451347]
[1764646576538,0.68,126.54,126.51,10.50231285]
[1764646576834,0.68,126.54,126.52,2.59779938]
[1764646578331,0.68,126.54,126.52,7.90364522]
[1764646579236,0.68,126.54,126.52,11.95801981]
[1764646579432,0.68,126.54,126.52,7.90364522]
[1764646579733,0.68,126.54,126.51,11.95865402]
[1764646580333,0.68,126.54,126.51,7.90427943]
[1764646581638,0.68,126.54,126.51,11.95865402]
[1764646583139,0.68,126.54,126.51,7.90427943]
[1764646583937,12.63727146,126.54,126.5,9.20493173]
[1764646584311,0.68,126.53,126.5,9.20493173]
[1764646584834,0.68,126.53,126.5,13.25930632]
[1764646585725,27.65703692,126.56,126.51,4.05437459]
[1764646585726,0.68,126.54,126.51,4.05437459]
[1764646585918,0.68,126.54,126.51,4.71437459]
[1764646586353,0.68,126.54,126.51,4.05437459]
[1764646586934,0.68,126.54,126.52,7.90388871]
[1764646588745,0.68,126.54,126.52,11.9582633]
[1764646588923,0.68,126.54,126.51,7.90441451]
[1764646589126,4.73437459,126.54,126.51,7.90441451]
[1764646589634,0.68,126.53,126.51,7.90441451]
[1764646591450,0.68,126.53,126.5,9.20491479]
[1764646592246,12.637686,126.53,126.49,20.69986916]
[1764646592445,12.637686,126.53,126.49,11.95986916]
[1764646592650,0.68,126.52,126.49,12.67986916]
[1764646595061,0.68,126.52,126.5,4.05437459]
[1764646595442,0.68,126.52,126.5,11.95911927]
[1764646596144,19.75435059,126.56,126.51,13.58431951]
[1764646596342,0.2,126.58,126.55,4.05437459]
[1764646596658,0.88,126.58,126.56,4.05437459]
[1764646596853,0.88,126.58,126.55,4.05437459]
[1764646597062,0.68,126.57,126.55,4.05437459]
[1764646597348,0.2,126.58,126.55,4.05437459]
[1764646597557,0.88,126.58,126.56,4.05437459]
[1764646598550,0.2,126.58,126.57,4.05437459]
[1764646599569,0.2,126.58,126.57,11.95514096]
[1764646600544,0.2,126.58,126.57,12.67514096]
[1764646600844,0.2,126.58,126.57,11.95514096]
[1764646604246,0.2,126.58,126.57,21.45508588]
[1764646604443,0.2,126.58,126.57,22.75508588]
[1764646606567,0.2,126.58,126.57,9.20076637]
[1764646606770,0.2,126.58,126.57,13.25514096]
[1764646607073,0.2,126.58,126.57,13.94514096]
[1764646607577,0.2,126.58,126.57,13.25514096]
[1764646607777,0.2,126.58,126.57,13.94514096]
[1764646607952,0.2,126.58,126.57,22.75508588]
[1764646608451,0.2,126.6,126.58,25.11880892]
[1764646608643,0.2,126.6,126.59,25.80085567]
[1764646608848,0.2,126.6,126.59,22.28648108]
[1764646609669,0.2,126.6,126.59,30.1859992]
[1764646610561,0.2,126.6,126.59,30.04383763]
[1764646610970,0.2,126.6,126.59,8.80994492]
[1764646611164,0.2,126.6,126.59,20.76383763]
[1764646612086,0.2,126.6,126.59,21.30383763]
[1764646612275,0.2,126.6,126.59,20.76383763]
[1764646612855,0.2,126.6,126.59,16.70946304]
[1764646613063,0.92,126.6,126.58,28.26335045]
[1764646613260,0.2,126.6,126.58,28.26335045]
[1764646613477,0.2,126.6,126.59,4.05437459]
[1764646614178,0.2,126.6,126.59,20.76383763]
[1764646614770,0.92,126.6,126.58,24.20900345]
[1764646614963,0.92,126.6,126.58,28.26337804]
[1764646615781,0.92,126.6,126.58,24.20900345]
[1764646616079,0.92,126.6,126.58,11.95451404]
[1764646617487,0.2,126.6,126.58,11.95451404]
[1764646617672,0.92,126.6,126.58,11.95451404]
[1764646618389,0.2,126.6,126.58,4.05437459]
[1764646618578,0.72,126.59,126.58,4.05437459]
[1764646619064,0.92,126.6,126.58,4.05437459]
[1764646619789,0.2,126.6,126.57,17.94060887]
[1764646619989,0.72,126.59,126.57,21.99498346]
[1764646620223,0.72,126.59,126.58,4.05437459]
[1764646621504,0.72,126.59,126.57,20.69498346]
[1764646622335,0.2,126.6,126.58,4.05437459]
[1764646622515,0.92,126.6,126.59,4.05437459]
[1764646623740,0.92,126.6,126.58,4.05437459]
[1764646623961,0.72,126.59,126.58,4.05437459]
[1764646624862,0.72,126.59,126.58,11.95451679]
[1764646625359,0.72,126.59,126.58,4.05437459]
[1764646625955,0.72,126.59,126.57,17.94070456]
[1764646626168,0.72,126.59,126.57,21.99507915]
[1764646627857,0.72,126.59,126.58,4.05437459]
[1764646628154,0.2,126.6,126.58,4.05437459]
[1764646628456,0.2,126.6,126.58,7.89998027]
[1764646628656,0.92,126.6,126.59,4.05437459]
[1764646629344,0.92,126.6,126.58,11.95435486]
[1764646629959,0.92,126.6,126.59,4.05437459]
[1764646631746,0.92,126.6,126.58,11.95435486]
[1764646634264,0.67,126.59,126.57,16.64052772]
[1764646634562,0.67,126.59,126.58,4.05437459]
[1764646635860,0.2,126.6,126.58,4.05437459]
[1764646636166,0.67,126.59,126.57,16.64067181]
[1764646636351,0.67,126.59,126.58,4.05437459]
[1764646636758,0.87,126.6,126.58,4.05437459]
[1764646637465,0.67,126.59,126.58,4.05437459]
[1764646638163,0.67,126.59,126.57,20.6950896]
[1764646639567,0.67,126.59,126.58,4.05437459]
[1764646640372,0.67,126.59,126.58,2.59219325]
[1764646643572,0.87,126.6,126.58,2.59219325]
[1764646644071,0.2,126.6,126.59,2.59219325]
[1764646644773,0.2,126.6,126.59,27.71100217]
[1764646645074,0.2,126.6,126.59,36.99100217]
[1764646645668,0.2,126.6,126.59,44.89052029]
[1764646646071,0.2,126.6,126.59,44.35052029]
[1764646646272,0.87,126.6,126.59,44.35052029]
[1764646646949,0.2,126.6,126.59,44.35052029]
[1764646647855,0.2,126.6,126.59,35.54057537]
[1764646649174,0.2,126.6,126.59,44.89052029]
[1764646650459,0.2,126.6,126.59,55.40145486]
[1764646651965,0.2,126.6,126.59,56.70145486]
[1764646652682,0.2,126.61,126.6,8.95210649]
[1764646652853,0.2,126.61,126.6,22.45307274]
[1764646653256,0.91,126.61,126.6,33.85880892]
[1764646653476,0.91,126.61,126.6,36.99100217]
[1764646653477,0.2,126.61,126.6,36.99100217]
[1764646653650,0.2,126.61,126.6,36.45100217]
[1764646654056,0.91,126.61,126.6,36.45100217]
[1764646654460,0.91,126.61,126.6,27.64105725]
[1764646654980,0.91,126.61,126.6,35.5399514]
[1764646655194,0.2,126.61,126.6,35.5399514]
[1764646655388,0.2,126.61,126.6,54.71866932]
[1764646655565,0.2,126.61,126.6,44.88989632]
[1764646655768,0.2,126.61,126.6,47.48208957]
[1764646655978,0.2,126.61,126.6,31.31538714]
[1764646656165,0.2,126.62,126.61,27.85316374]
[1764646656366,0.2,126.63,126.61,29.69316374]
[1764646656567,0.2,126.63,126.62,12.01435482]
[1764646657196,0.2,126.63,126.62,20.82429974]
[1764646657371,0.71,126.68,126.63,0.14216157]
[1764646657566,0.71,126.68,126.67,2.59219325]
[1764646658070,11.1963972,126.68,126.64,8.74]
[1764646658476,0.71,126.67,126.63,2.59219325]
[1764646658683,3.30219325,126.67,126.62,2.59219325]
[1764646658877,2.59219325,126.66,126.61,16.308864]
[1764646659082,0.71,126.65,126.61,18.90105725]
[1764646659969,8.60580027,126.65,126.61,18.90105725]
[1764646660390,0.71,126.64,126.61,18.90105725]
[1764646660592,0.71,126.64,126.6,11.33219325]
[1764646660971,0.71,126.64,126.6,2.59219325]
[1764646662185,0.71,126.64,126.62,2.59219325]
[1764646663785,0.71,126.64,126.61,2.59219325]
[1764646665244,0.7,126.67,126.63,2.59219325]
[1764646665400,0.7,126.67,126.65,2.59219325]
[1764646666277,0.7,126.67,126.64,11.33219325]
[1764646669305,0.7,126.69,126.64,17.17613549]
[1764646669513,0.7,126.68,126.65,2.59219325]
[1764646669904,0.7,126.68,126.64,19.76832874]
[1764646670514,0.7,126.68,126.65,2.59219325]
[1764646673511,0.7,126.68,126.66,2.59219325]
[1764646674112,0.9,126.7,126.67,2.59219325]
[1764646674312,0.9,126.7,126.67,11.33219325]
[1764646674711,0.7,126.69,126.68,2.59219325]
[1764646675394,0.7,126.69,126.67,11.33219325]
[1764646677014,0.2,126.7,126.68,3.13219325]
[1764646677214,0.2,126.7,126.69,2.59219325]
[1764646680291,0.2,126.7,126.69,11.40213817]
[1764646680523,0.2,126.7,126.69,11.94213817]
[1764646680817,0.2,126.7,126.69,36.28644655]
[1764646684931,0.2,126.7,126.69,45.02644655]
[1764646685134,0.2,126.72,126.7,9.49210649]
[1764646685423,0.2,126.73,126.72,0.14216157]
[1764646685728,0.2,126.73,126.72,13.64312782]
[1764646686221,0.2,126.73,126.72,30.34448688]
[1764646686601,0.2,126.73,126.72,33.50616731]
[1764646690120,0.2,126.73,126.72,34.80616731]
[1764646692622,0.7,126.77,126.74,25.11880892]
[1764646692829,0.66,126.78,126.74,36.43100217]
[1764646693009,0.66,126.78,126.74,36.97100217]
[1764646693440,0.2,126.81,126.74,38.27100217]
[1764646693731,0.2,126.81,126.74,27.10097049]
[1764646694031,0.66,126.77,126.74,29.44973175]
[1764646694238,0.66,126.77,126.74,21.56429974]
[1764646694720,0.66,126.77,126.74,22.10429974]
[1764646694937,0.66,126.77,126.74,29.99446858]
[1764646695622,0.66,126.78,126.74,29.99446858]
[1764646697138,0.66,126.8,126.74,29.99446858]
[1764646697338,0.66,126.79,126.74,29.99446858]
[1764646697718,0.66,126.77,126.74,27.40227533]
[1764646697932,0.2,126.81,126.74,29.99446858]
[1764646698135,0.66,126.79,126.74,29.99446858]
[1764646698437,0.86,126.81,126.78,38.07977517]
[1764646698645,0.86,126.81,126.8,2.59219325]
[1764646698816,0.66,126.8,126.79,11.31219325]
[1764646699709,0.66,126.8,126.79,8.72]
[1764646699915,0.66,126.8,126.78,17.508864]
[1764646699916,0.66,126.8,126.78,25.028864]
[1764646700336,2.59219325,126.79,126.73,1.2]
[1764646700544,4.03987558,126.77,126.74,8.72]
[1764646700846,4.03987558,126.78,126.74,8.72]
[1764646701037,4.03987558,126.78,126.74,12.75987558]
[1764646701337,0.57,126.77,126.74,12.75987558]
[1764646701716,0.57,126.77,126.74,8.72]
[1764646702316,0.57,126.77,126.74,12.75987558]
[1764646703034,0.57,126.77,126.74,8.72]
[1764646703630,0.57,126.77,126.74,9.38]
[1764646705315,0.57,126.77,126.74,8.72]
[1764646706047,4.60987558,126.77,126.74,8.72]
[1764646706224,0.57,126.77,126.74,8.72]
[1764646706426,0.57,126.76,126.74,8.72]
[1764646707848,0.57,126.78,126.75,4.03987558]
[1764646708051,0.57,126.77,126.74,13.41987558]
[1764646708746,0.57,126.77,126.74,8.72]
[1764646710334,0.57,126.77,126.74,16.61011485]
[1764646711257,0.57,126.77,126.74,17.81011485]
[1764646714244,0.57,126.77,126.74,16.61011485]
[1764646714430,0.2,126.81,126.78,8.80994492]
[1764646714633,0.2,126.81,126.8,12.8498205]
[1764646715152,0.2,126.81,126.8,13.5298205]
[1764646715343,0.2,126.81,126.8,22.2498205]
[1764646716338,0.2,126.81,126.8,30.13625583]
[1764646719544,0.2,126.81,126.8,29.45625583]
[1764646719737,0.2,126.81,126.8,30.13625583]
[1764646720139,0.2,126.81,126.8,30.2784174]
[1764646723150,0.2,126.81,126.8,31.4784174]
[1764646724941,0.2,126.81,126.8,30.65625583]
[1764646727956,0.2,126.81,126.8,31.35625583]
[1764646729339,0.2,126.81,126.8,30.65625583]
[1764646729536,0.77,126.81,126.8,9.92]
[1764646733263,0.2,126.81,126.8,9.92]
[1764646736465,0.77,126.81,126.8,9.92]
[1764646736968,0.2,126.81,126.8,9.92]
[1764646738059,0.2,126.81,126.8,1.2]
[1764646738766,0.2,126.81,126.8,5.93987558]
[1764646739266,0.2,126.81,126.8,13.95987558]
[1764646739845,0.2,126.81,126.8,9.92]
[1764646740746,0.77,126.81,126.8,9.92]
[1764646740953,0.77,126.81,126.8,8.72]
[1764646742351,4.80987558,126.81,126.76,4.73987558]
[1764646742664,0.57,126.8,126.77,9.42]
[1764646744850,12.69630482,126.81,126.77,9.42]
[1764646745356,0.2,126.81,126.78,13.5498205]
[1764646745558,0.2,126.81,126.8,4.03987558]
[1764646745751,0.2,126.81,126.79,13.45987558]
[1764646745950,0.2,126.81,126.8,0.7]
[1764646748049,0.2,126.81,126.8,14.89198207]
[1764646748672,0.2,126.81,126.8,22.7784174]
[1764646752578,0.2,126.81,126.8,30.66077124]
[1764646758182,0.2,126.81,126.8,22.7784174]
[1764646758357,0.2,126.81,126.8,30.86128685]
[1764646758678,0.2,126.81,126.8,22.7784174]
[1764646760079,0.2,126.81,126.8,18.73854182]
[1764646760282,0.2,126.81,126.8,22.7784174]
[1764646761386,0.2,126.86,126.85,25.11880892]
[1764646761588,0.2,126.86,126.85,38.02084607]
[1764646761786,0.2,126.86,126.85,38.69084607]
[1764646762489,0.2,126.86,126.85,37.23079051]
[1764646762662,0.2,126.86,126.85,27.69862894]
[1764646762863,0.77,126.86,126.85,25.028864]
[1764646764768,0.77,126.86,126.84,33.83880892]
[1764646764979,0.2,126.86,126.84,33.83880892]
[1764646766791,0.2,126.86,126.84,25.11880892]
[1764646767096,0.2,126.86,126.84,36.41862894]
[1764646767286,0.2,126.86,126.84,33.83880892]
[1764646768099,0.2,126.86,126.85,3.39198159]
[1764646770378,0.2,126.86,126.85,20.08525327]
[1764646772994,0.2,126.86,126.85,8.80994492]
[1764646773202,0.2,126.86,126.85,20.10976494]
[1764646773392,0.2,126.86,126.85,20.81976494]
[1764646773700,0.2,126.86,126.85,20.90976494]
[1764646774787,0.2,126.86,126.85,29.5030917]
[1764646775502,0.2,126.86,126.85,29.64525327]
[1764646778378,0.2,126.86,126.85,29.64525327]
[1764646779103,0.2,126.86,126.85,27.06543325]
[1764646779298,0.2,126.86,126.85,29.64525327]
[1764646783488,0.2,126.86,126.85,9.60994492]
[1764646783688,0.2,126.86,126.85,20.90976494]
[1764646784613,0.2,126.86,126.85,12.18976494]
[1764646784814,0.2,126.86,126.85,18.32994492]
[1764646785620,0.77,126.86,126.82,2.57982002]
[1764646786123,0.57,126.85,126.83,8.72]
[1764646787303,8.45340066,126.85,126.83,8.72]
[1764646788313,8.45340066,126.85,126.81,36.28420457]
[1764646788314,0.57,126.84,126.81,27.60868402]
[1764646788512,8.45340066,126.85,126.82,11.38976494]
[1764646791003,8.45340066,126.85,126.82,12.18976494]
[1764646791733,8.45340066,126.85,126.82,9.60994492]
[1764646792924,0.57,126.84,126.82,0.8]
[1764646793113,0.57,126.84,126.81,25.028864]
[1764646793314,0.57,126.84,126.81,28.30868402]
[1764646793717,0.2,126.86,126.83,11.38976494]
[1764646793902,0.77,126.86,126.83,20.10976494]
[1764646794106,0.77,126.86,126.83,20.80976494]
[1764646795130,0.77,126.86,126.84,2.57982002]
[1764646795429,0.77,126.86,126.83,20.80976494]
[1764646796337,0.2,126.86,126.83,25.4144217]
[1764646796627,0.2,126.86,126.85,8.95210649]